Workbook

Sheet Foglio1
A1: Tipologia di attrezzatura/bene | B1: Descrizione prodotto | C1: Q | D1: Costo Unitario Stimato Iva comp.al 22% | E1: Costo TOT Iva comp.
A2: A.1 - Lavori | B2: PC tablet 102 | C2: 1 | D2: 2000 | E2: =D2*C2 -> 2000
A3: A.2 - Forniture | C3: 6 | D3: 3500 | E3: =D3*C3 -> 21000
A4: A.2 - Forniture | C4: 50 | D4: 45 | E4: =D4*C4 -> 2250
A5: A.2 - Forniture | C5: 80 | D5: 123.5 | E5: =D5*C5 -> 9880
A6: A.2 - Forniture | C6: 81 | D6: 124.5 | E6: =D6*C6 -> 10084.5
A7: A.2 - Forniture | C7: 82 | D7: 125.5 | E7: =D7*C7 -> 10291
A8: A.2 - Forniture | C8: 83 | D8: 126.5 | E8: =D8*C8 -> 10499.5
A9: A.2 - Forniture | C9: 84 | D9: 127.5 | E9: =D9*C9 -> 10710
A10: A.2 - Forniture | C10: 85 | D10: 128.5 | E10: =D10*C10 -> 10922.5
A11: A.2 - Forniture | C11: 86 | D11: 129.5 | E11: =D11*C11 -> 11137
B12: A) | D12: Tot. Lordo (IVA comp) | E12: =SUM(E2:E11) -> 98774.5 | F12: =E12/E38 -> 0.7788589294
D13: ..di cui IVA al 22% | E13: =(E10)-E10/1.22 -> 1969.631148
A15: B. - Spese tecniche e incentivi | C15: 1 | D15: 2000 | E15: =D15*C15 -> 2000
A16: B. - Spese tecniche e incentivi | C16: 1 | D16: 3500 | E16: =D16*C16 -> 3500
A17: B. - Spese tecniche e incentivi | C17: 1 | D17: 45 | E17: =D17*C17 -> 45
A18: B. - Spese tecniche e incentivi | C18: 1 | D18: 3500 | E18: =D18*C18 -> 3500
B19: B) | D19: Tot. Lordo (IVA comp) | E19: =SUM(E15:E18) -> 9045 | F19: =E19/E38 -> 0.07132183931
D20: ..di cui IVA al 22% | E20: =(E12)-E12/1.22 -> 17811.79508
A22: C.1 - Collaudo opere edili | C22: 1 | D22: 2000 | E22: =D22*C22 -> 2000
A23: C.2 – Conformità arredi | C23: 1 | D23: 2000 | E23: =D23*C23 -> 2000
B24: C) | D24: Tot. Lordo (IVA comp) | E24: =SUM(E22:E23) -> 4000 | F24: =E24/E38 -> 0.03154089079
D25: ..di cui IVA al 22% | E25: =(E17)-E17/1.22 -> 8.114754098
A27: D – Pubblicità | B27: D) | C27: 1 | D27: 2000 | E27: =D27*C27 -> 2000
B28: C) | D28: Tot. Lordo (IVA comp) | E28: =SUM(E27:E27) -> 2000 | F28: =E28/E38 -> 0.0157704454
D29: ..di cui IVA al 22% | E29: =(E21)-E21/1.22 -> 0
A31: E.1 – Altre spese | C31: 1 | D31: 2000 | E31: =D31*C31 -> 2000
A32: E.2 – Altre spese | C32: 1 | D32: 4000 | E32: =D32*C32 -> 4000
A33: E.3 – Altre spese | C33: 1 | D33: 6000 | E33: =D33*C33 -> 6000
A34: E.4 – Altre spese | C34: 1 | D34: 1000 | E34: =D34*C34 -> 1000
B35: C) | D35: Tot. Lordo (IVA comp) | E35: =SUM(E31:E34) -> 13000 | F35: =E35/E38 -> 0.1025078951
D36: ..di cui IVA al 22% | E36: =(E28)-E28/1.22 -> 360.6557377
D38: A+B+C+D+E | E38: =E12+E24+E28+E19+E35 -> 126819.5

Sheet Foglio2
A1: A.1 - Acquisti attrezzature, strumentazioni, hardware
A2: A.2 –Software di rete/ sistema/per la sicurezza ad uso didattico esclusivo
A3: A.3 – Internet key e modem-router 4G/LTE e altri accessori
A4: A.4 – Armadi e carrelli per la custodia dei dispositivi
